bitfinex-derivatives/quotes_SOLF0:USTF0_20250426
["timestamp","ask_amount","ask_price","bid_price","bid_amount"]
[1745672852597,8.1670447,148.51,148.47,32.6870447]
[1745672853401,6.7319,148.5,148.47,32.6870447]
[1745672853895,6.7319,148.5,148.47,39.4202447]
[1745672854199,6.7319,148.5,148.47,32.6870447]
[1745672854494,6.7324,148.49,148.47,32.6870447]
[1745672854689,6.7324,148.49,148.46,8.1670447]
[1745672855789,6.7332,148.47,148.44,32.6870447]
[1745672856801,8.1670447,148.46,148.42,8.1670447]
[1745672857801,8.1670447,148.45,148.41,24.52]
[1745672857993,8.1670447,148.45,148.41,32.6870447]
[1745672858602,6.7348,148.44,148.41,32.6870447]
[1745672859595,6.7348,148.44,148.41,24.52]
[1745672860703,6.7348,148.44,148.41,31.2558]
[1745672861604,12.80005419,148.5,148.41,37.32005419]
[1745672862204,6.7329,148.48,148.41,37.32005419]
[1745672862598,6.7329,148.48,148.43,12.80005419]
[1745672863005,6.7329,148.48,148.44,6.7344]
[1745672863302,6.7336,148.47,148.41,37.32005419]
[1745672863504,12.80005419,148.5,148.41,37.32005419]
[1745672863707,6.7339,148.46,148.42,6.7352]
[1745672863906,6.7339,148.46,148.41,37.32005419]
[1745672865008,6.7339,148.46,148.43,6.7347]
[1745672865209,24.52,148.51,148.43,12.80005419]
[1745672865708,6.7324,148.49,148.46,6.7333]
[1745672865904,24.52,148.51,148.45,37.32005419]
[1745672866305,6.7321,148.5,148.47,6.7332]
[1745672866608,6.7321,148.5,148.45,37.32005419]
[1745672866808,6.7321,148.5,148.46,6.7333]
[1745672868009,6.7324,148.49,148.46,6.7333]
[1745672869608,6.732,148.5,148.46,6.7333]
[1745672871307,31.2515,148.51,148.45,37.32005419]
[1745672871503,6.7315,148.51,148.45,37.32005419]
[1745672872000,6.7315,148.51,148.47,6.7327]
[1745672873916,6.7318,148.5,148.47,6.7327]
[1745672874708,6.7315,148.51,148.48,6.7327]
[1745672876913,37.32005419,148.54,148.47,6.733]
[1745672876914,6.7318,148.5,148.47,6.733]
[1745672878413,6.7315,148.51,148.48,6.7327]
[1745672880821,24.52,148.54,148.47,12.80005419]
[1745672881117,37.32005419,148.54,148.45,37.32005419]
[1745672881317,37.32005419,148.54,148.46,6.7334]
[1745672881621,8.18628694,148.51,148.46,14.91968694]
[1745672881816,8.18628694,148.52,148.47,8.18628694]
[1745672882419,24.52,148.54,148.49,8.18628694]
[1745672882620,24.52,148.54,148.5,8.18628694]
[1745672882820,32.70628694,148.54,148.5,8.18628694]
[1745672883119,24.52,148.54,148.51,8.18628694]
[1745672883318,12.25398694,148.56,148.51,8.18628694]
[1745672883520,6.7301,148.54,148.51,8.18628694]
[1745672885323,6.7301,148.54,148.51,14.91758694]
[1745672885822,6.7301,148.54,148.51,8.18628694]
[1745672886026,6.7305,148.53,148.51,8.18628694]
[1745672886726,6.7302,148.54,148.51,8.18628694]
[1745672887427,6.7297,148.55,148.51,8.18628694]
[1745672887624,6.7297,148.55,148.51,14.91728694]
[1745672888025,6.7293,148.56,148.53,14.91648694]
[1745672888225,6.7293,148.56,148.53,8.18628694]
[1745672889930,6.7296,148.55,148.53,8.18628694]
[1745672890130,6.7296,148.55,148.52,14.91708694]
[1745672891030,6.7296,148.55,148.52,8.18628694]
[1745672893039,6.7292,148.56,148.54,8.18628694]
[1745672893632,8.18628694,148.58,148.54,8.18628694]
[1745672893833,8.18628694,148.58,148.53,8.18628694]
[1745672894233,6.7295,148.55,148.53,8.18628694]
[1745672898737,6.73,148.54,148.52,8.18628694]
[1745672898938,8.18628694,148.55,148.49,24.5]
[1745672899144,8.18628694,148.54,148.49,32.68628694]
[1745672899435,8.18628694,148.53,148.49,32.68628694]
[1745672900136,6.7312,148.52,148.49,32.68628694]
[1745672902741,6.7314,148.51,148.49,32.68628694]
[1745672902931,6.7314,148.51,148.49,24.5]
[1745672903937,14.91808694,148.5,148.46,39.41978694]
[1745672904442,6.7323,148.49,148.46,39.41978694]
[1745672904937,14.91828694,148.5,148.47,6.7331]
[1745672905143,6.732,148.5,148.47,14.91938694]
[1745672909041,14.91778694,148.51,148.48,6.7327]
[1745672910244,14.91778694,148.51,148.47,14.91918694]
[1745672910444,6.7318,148.5,148.47,14.91918694]
[1745672910947,6.7318,148.5,148.47,8.18628694]
[1745672911747,6.7325,148.49,148.47,8.18628694]
[1745672912046,14.91878694,148.49,148.46,31.2334]
[1745672912244,14.91878694,148.49,148.46,24.5]
[1745672913842,14.91878694,148.49,148.46,31.2334]
[1745672915146,6.7325,148.49,148.46,31.2334]
[1745672915847,14.91838694,148.5,148.47,6.7331]
[1745672916043,8.18628694,148.5,148.47,6.7331]
[1745672916245,8.18628694,148.5,148.46,24.5]
[1745672916645,6.7323,148.49,148.46,31.2333]
[1745672918050,6.7315,148.51,148.48,6.7327]
[1745672918245,32.66628694,148.52,148.48,8.18628694]
[1745672918738,6.7317,148.51,148.48,8.18628694]
[1745672919449,6.7317,148.51,148.48,14.91888694]
[1745672921349,36.69348694,148.55,148.5,8.18628694]
[1745672921854,6.7303,148.54,148.5,14.91798694]
[1745672922350,36.69348694,148.55,148.5,14.91798694]
[1745672922948,8.18628694,148.54,148.5,14.91798694]
[1745672923249,6.7305,148.53,148.5,14.91798694]
[1745672924448,6.7305,148.53,148.5,8.18628694]
[1745672925452,6.7305,148.53,148.5,14.91798694]
[1745672926551,6.7302,148.54,148.5,14.91798694]
[1745672926754,6.7302,148.54,148.51,14.91758694]
[1745672927251,6.7305,148.53,148.51,8.18628694]
[1745672927752,6.7305,148.53,148.5,14.91788694]
[1745672929950,6.7301,148.54,148.5,8.18628694]
[1745672930150,24.5,148.55,148.51,14.91758694]
[1745672930355,8.18628694,148.56,148.51,14.91758694]
[1745672930559,6.7298,148.55,148.51,14.91758694]
[1745672931657,6.7298,148.55,148.52,6.7308]
[1745672931958,6.7298,148.55,148.52,14.91708694]
[1745672934361,8.18628694,148.53,148.47,30.3731]
[1745672934661,8.18628694,148.52,148.48,8.18628694]
[1745672934860,8.18628694,148.53,148.48,8.18628694]
[1745672935361,8.18628694,148.52,148.47,38.55938694]
[1745672935561,8.18628694,148.51,148.47,24.48]
[1745672936361,8.18628694,148.53,148.48,8.18628694]
[1745672936559,8.18628694,148.53,148.49,8.18628694]
[1745672936753,6.7312,148.52,148.49,8.18628694]
[1745672937464,6.7312,148.52,148.49,14.91848694]
[1745672937664,6.7306,148.53,148.5,8.18628694]
[1745672938163,31.21,148.54,148.51,8.18628694]
[1745672938360,6.73,148.54,148.52,8.18628694]
[1745672940064,6.73,148.54,148.51,8.18628694]
[1745672944366,6.73,148.54,148.51,14.91758694]
[1745672944557,6.73,148.54,148.51,8.18628694]
[1745672948368,8.18628694,148.55,148.48,6.0889]
[1745672948570,24.48,148.57,148.54,8.18628694]
[1745672948963,6.7292,148.56,148.54,8.18628694]
[1745672949871,6.7296,148.55,148.53,8.18628694]
[1745672950273,32.66628694,148.57,148.52,8.18628694]
[1745672950571,6.7298,148.55,148.52,8.18628694]
[1745672953772,6.73,148.54,148.52,8.18628694]
[1745672954373,6.7309,148.52,148.49,8.18628694]
[1745672955572,6.7309,148.52,148.5,8.18628694]
[1745672955874,6.7306,148.53,148.5,8.18628694]
[1745672956076,6.7306,148.53,148.51,8.18628694]
[1745672957172,6.7302,148.54,148.51,8.18628694]
[1745672957374,8.18628694,148.56,148.51,8.18628694]
[1745672958373,6.7305,148.53,148.51,8.18628694]
[1745672961377,6.7305,148.53,148.49,14.91838694]
[1745672962879,6.731,148.52,148.49,14.91838694]
[1745672963075,8.18628694,148.51,148.48,24.48]
[1745672963287,8.18628694,148.5,148.45,32.66628694]
[1745672963574,6.7327,148.48,148.45,39.40018694]
[1745672964079,6.7324,148.49,148.46,6.7336]
[1745672964281,8.18628694,148.5,148.45,32.66628694]
[1745672965381,6.7327,148.48,148.45,14.92018694]
[1745672966181,6.7327,148.48,148.45,8.18628694]
[1745672966885,6.7327,148.48,148.46,8.18628694]
[1745672970184,6.7327,148.48,148.46,14.91988694]
[1745672970683,6.7324,148.49,148.46,14.91988694]
[1745672975390,6.7327,148.48,148.46,8.18628694]
[1745672975594,6.7327,148.48,148.45,14.92018694]
[1745672977905,8.18628694,148.49,148.46,6.7336]
[1745672977906,14.91878694,148.49,148.46,6.7336]
[1745672978494,6.7325,148.49,148.46,6.7336]
[1745672980093,6.7325,148.49,148.46,8.18628694]
[1745672981394,6.7325,148.49,148.46,14.91968694]
[1745672987502,14.91828694,148.5,148.47,6.7331]
[1745672987801,6.732,148.5,148.47,6.7331]
[1745672988703,6.7323,148.49,148.47,6.7331]
[1745672989904,6.7323,148.49,148.46,14.91968694]
[1745672992710,6.7327,148.48,148.46,8.18628694]
[1745672992908,8.18628694,148.49,148.45,14.92018694]
[1745672993210,6.733,148.48,148.45,14.92018694]
[1745672994109,14.91878694,148.49,148.46,6.7336]
[1745672996810,6.7328,148.48,148.45,14.92018694]
[1745672997009,8.18628694,148.47,148.43,24.46]
[1745672997406,6.7339,148.46,148.43,31.1948]
[1745672999512,6.7344,148.45,148.43,24.46]
[1745672999712,6.7344,148.45,148.42,6.7353]
[1745673000110,6.7346,148.44,148.42,6.7353]
[1745673000315,6.7346,148.44,148.41,39.38198694]
[1745673000814,6.735,148.43,148.41,32.64628694]
[1745673001016,8.18628694,148.45,148.41,32.64628694]
[1745673001719,6.7348,148.44,148.41,39.38188694]
[1745673002018,6.7348,148.44,148.41,31.1956]
[1745673005827,8.18628694,148.42,148.37,32.62628694]
[1745673006029,24.44,148.45,148.37,32.62628694]
[1745673006030,8.18628694,148.41,148.37,32.62628694]
[1745673006728,8.18628694,148.41,148.37,24.44]
[1745673006930,8.18628694,148.41,148.38,6.737]
[1745673008930,8.18628694,148.42,148.37,32.62628694]
[1745673009132,8.18628694,148.42,148.38,8.18628694]
[1745673009332,8.18628694,148.43,148.38,8.18628694]
[1745673009532,14.92128694,148.43,148.39,6.7364]
[1745673010030,8.18628694,148.43,148.39,6.7364]
[1745673011130,6.7355,148.42,148.39,6.7364]
[1745673012228,6.736,148.41,148.38,6.737]
[1745673012427,14.92228694,148.41,148.38,6.737]
[1745673014031,6.736,148.41,148.38,6.737]
[1745673015732,14.92228694,148.41,148.38,6.737]
[1745673022238,8.18628694,148.4,148.36,31.1977]
[1745673022539,8.18628694,148.38,148.36,24.46]
[1745673022742,2.0415,148.47,148.33,43.44818694]
[1745673022743,6.7382,148.36,148.33,43.44818694]
[1745673022936,8.18628694,148.35,148.33,24.46]
[1745673023137,8.18628694,148.34,148.3,32.64628694]
[1745673023536,6.7391,148.34,148.31,6.7401]
[1745673025436,14.92508694,148.35,148.31,14.92638694]
[1745673026243,8.18628694,148.39,148.34,8.18628694]
[1745673026441,12.13168694,148.4,148.36,8.18628694]
[1745673026641,8.18628694,148.4,148.36,8.18628694]
[1745673027039,32.64628694,148.41,148.37,8.18628694]
[1745673027540,39.38248694,148.41,148.37,14.92368694]
[1745673027742,31.1962,148.41,148.37,8.18628694]
[1745673027941,31.1962,148.41,148.38,8.18628694]
[1745673028241,31.1962,148.41,148.38,14.92318694]
[1745673028445,6.7362,148.41,148.38,14.92318694]
[1745673028648,6.7362,148.41,148.38,8.18628694]
[1745673029643,6.7355,148.42,148.38,8.18628694]
[1745673029844,36.68478694,148.44,148.4,8.18628694]
[1745673030046,8.18628694,148.45,148.41,8.18628694]
[1745673031250,6.7348,148.44,148.41,8.18628694]
[1745673036358,6.735,148.43,148.41,8.18628694]
[1745673038958,6.735,148.43,148.4,14.92248694]
[1745673039158,6.735,148.43,148.4,8.18628694]
[1745673039362,6.7355,148.42,148.39,14.92288694]
[1745673040858,63.78450737,148.56,148.4,8.18628694]
[1745673041051,8.18628694,148.52,148.47,8.18628694]
[1745673041254,8.18628694,148.52,148.47,32.62628694]
[1745673041460,6.7317,148.51,148.47,32.62628694]
[1745673042161,6.7318,148.5,148.47,24.44]
[1745673042357,8.18628694,148.51,148.47,24.44]
[1745673042553,24.44,148.55,148.45,8.18628694]
[1745673042554,8.18628694,148.5,148.45,8.18628694]
[1745673042757,14.91838694,148.5,148.45,8.18628694]
[1745673043562,14.91838694,148.5,148.45,14.92028694]
[1745673045162,8.18628694,148.49,148.44,39.36068694]
[1745673045363,1.17223027,148.57,148.44,39.36068694]
[1745673045364,8.18628694,148.48,148.44,39.36068694]
[1745673045662,14.91928694,148.48,148.44,39.36068694]
[1745673045864,8.18628694,148.47,148.41,1.9046]
[1745673046163,8.18628694,148.46,148.42,32.62628694]
[1745673046367,8.18628694,148.46,148.42,24.44]
[1745673046561,8.18628694,148.45,148.42,24.44]
[1745673046965,8.18628694,148.44,148.42,24.44]
[1745673047161,6.735,148.43,148.39,32.62628694]
[1745673047465,8.18628694,148.44,148.39,32.62628694]
[1745673047665,6.7344,148.43,148.39,39.36208694]
[1745673049866,14.92028694,148.44,148.4,6.7356]
[1745673050167,8.18628694,148.44,148.39,32.62628694]
[1745673051166,6.7344,148.43,148.39,39.36208694]
[1745673051366,8.18628694,148.46,148.41,8.18628694]
[1745673051865,6.7332,148.46,148.43,8.18628694]
[1745673052065,24.44,148.47,148.43,8.18628694]
[1745673052258,31.1728,148.47,148.43,14.92028694]
[1745673052567,8.18628694,148.46,148.42,8.18628694]
[1745673052766,8.18628694,148.46,148.41,8.18628694]
[1745673053066,8.18628694,148.45,148.4,8.18628694]
[1745673054070,8.18628694,148.44,148.4,8.18628694]
[1745673054570,6.7343,148.43,148.4,8.18628694]
[1745673054869,8.18628694,148.45,148.4,14.92178694]
[1745673055171,32.62628694,148.47,148.42,8.18628694]
[1745673055974,6.7335,148.45,148.42,8.18628694]
[1745673058575,6.7335,148.45,148.41,6.7351]
[1745673058779,6.7335,148.45,148.41,14.92138694]
[1745673059073,6.7331,148.46,148.43,8.18628694]
[1745673059274,32.62628694,148.47,148.43,8.18628694]
[1745673060375,8.18628694,148.45,148.4,8.18628694]
[1745673061181,6.7342,148.44,148.4,14.92188694]
[1745673061479,8.18628694,148.44,148.39,24.44]
[1745673061679,8.18628694,148.44,148.39,32.62628694]
[1745673062780,6.7346,148.43,148.39,39.36228694]
[1745673063681,6.7348,148.42,148.39,39.36228694]
[1745673063979,6.7348,148.42,148.4,8.18628694]
[1745673064582,8.18628694,148.44,148.4,8.18628694]
[1745673064780,8.18628694,148.44,148.39,32.62628694]
[1745673065283,6.7352,148.42,148.39,32.62628694]
[1745673065481,8.18628694,148.43,148.39,24.44]
[1745673065979,6.7349,148.42,148.39,24.44]
[1745673066782,6.7349,148.42,148.39,32.62628694]
[1745673068483,6.7349,148.42,148.39,39.36268694]
[1745673068681,6.7352,148.43,148.39,39.36268694]
[1745673068880,8.18628694,148.44,148.39,32.62628694]
[1745673069077,8.18628694,148.43,148.39,32.62628694]
[1745673069382,14.92238694,148.41,148.39,24.44]
[1745673069681,8.18628694,148.41,148.36,36.55558694]
[1745673070486,6.7366,148.4,148.37,8.18628694]
[1745673071383,6.7366,148.4,148.37,14.92398694]
[1745673073184,8.18628694,148.42,148.37,8.18628694]
[1745673073382,8.18628694,148.45,148.4,8.18628694]
[1745673073790,6.7349,148.44,148.41,8.18628694]
[1745673075186,6.7349,148.44,148.4,14.92238694]
[1745673075786,6.7351,148.43,148.4,14.92238694]
[1745673078186,8.18628694,148.45,148.4,8.18628694]
[1745673078390,32.62628694,148.46,148.42,8.18628694]
[1745673078893,31.1738,148.46,148.43,8.18628694]
[1745673079086,6.7338,148.46,148.43,8.18628694]
[1745673080388,6.7342,148.45,148.43,8.18628694]
[1745673080589,6.7342,148.45,148.42,14.92138694]
[1745673082999,6.7342,148.45,148.42,8.18628694]
[1745673083197,8.18628694,148.45,148.41,8.18628694]
[1745673083697,6.7348,148.44,148.41,8.18628694]
[1745673084504,6.7348,148.44,148.4,24.44]
[1745673084708,6.7348,148.44,148.4,32.62628694]
[1745673085607,6.7348,148.44,148.4,39.36238694]
[1745673086903,8.18628694,148.45,148.4,32.62628694]
[1745673087109,8.18628694,148.43,148.4,24.44]
[1745673087505,6.7358,148.42,148.4,24.44]
[1745673087706,8.18628694,148.43,148.4,24.44]
[1745673088209,6.7358,148.42,148.4,24.44]
[1745673088406,8.18628694,148.43,148.4,24.44]
[1745673088607,8.18628694,148.42,148.4,24.44]
[1745673088807,6.7362,148.41,148.37,39.34378694]
[1745673089010,6.7362,148.41,148.37,32.60628694]
[1745673090409,24.42,148.46,148.4,8.18628694]
[1745673090713,8.18628694,148.45,148.4,8.18628694]
[1745673091007,6.7353,148.43,148.4,8.18628694]
[1745673091606,8.18628694,148.44,148.39,6.7365]
[1745673091909,8.18628694,148.43,148.38,14.92338694]
[1745673092410,6.736,148.41,148.38,14.92338694]
[1745673095014,6.7365,148.4,148.37,32.60628694]
[1745673095814,6.7365,148.4,148.37,39.34368694]
[1745673096515,6.7361,148.41,148.37,39.34368694]
[1745673096710,6.7361,148.41,148.38,8.18628694]
[1745673097416,6.736,148.41,148.38,8.18628694]
[1745673097716,8.18628694,148.42,148.38,8.18628694]
[1745673098110,6.7362,148.41,148.38,8.18628694]
[1745673102118,6.7366,148.4,148.38,8.18628694]
[1745673102716,8.18628694,148.42,148.38,8.18628694]
[1745673103417,6.7363,148.4,148.38,8.18628694]
[1745673103821,8.18628694,148.4,148.37,24.42]
[1745673105216,6.7371,148.39,148.37,24.42]
[1745673108029,8.18628694,148.4,148.37,24.42]
[1745673108725,6.7372,148.39,148.37,24.42]
[1745673108918,8.18628694,148.4,148.37,24.42]
[1745673109120,6.7372,148.38,148.37,24.42]
[1745673109317,8.18628694,148.38,148.34,34.66878694]
[1745673109526,8.18628694,148.37,148.34,24.42]
[1745673109830,6.7384,148.36,148.33,14.92578694]
[1745673110027,6.7384,148.36,148.33,8.18628694]
[1745673110230,14.92418694,148.37,148.33,14.92548694]
[1745673110422,8.18628694,148.39,148.35,8.18628694]
[1745673110927,6.7375,148.38,148.35,8.18628694]
[1745673114835,6.7369,148.39,148.36,8.18628694]
[1745673115025,8.18628694,148.4,148.36,8.18628694]
[1745673115532,14.92298694,148.4,148.36,14.92428694]
[1745673116227,8.18628694,148.4,148.36,8.18628694]
[1745673116532,8.18628694,148.39,148.35,8.18628694]
[1745673117529,6.7375,148.38,148.35,8.18628694]
[1745673118936,6.7378,148.37,148.35,8.18628694]
[1745673119233,8.18628694,148.38,148.34,8.18628694]
[1745673119837,6.7378,148.37,148.34,8.18628694]
[1745673120038,8.18628694,148.38,148.33,14.92558694]
[1745673120335,6.7392,148.34,148.31,24.42]
[1745673120836,32.60628694,148.38,148.33,8.18628694]
[1745673121035,6.7386,148.36,148.33,8.18628694]
[1745673121635,14.92488694,148.36,148.32,14.92598694]
[1745673121834,6.7387,148.35,148.32,8.18628694]
[1745673122837,6.7387,148.35,148.33,8.18628694]
[1745673129037,6.7387,148.35,148.32,14.92618694]
[1745673130539,14.92468694,148.36,148.33,6.7395]
[1745673130739,6.7384,148.36,148.33,6.7395]
[1745673131741,24.42,148.38,148.35,8.18628694]
[1745673131937,8.18628694,148.4,148.36,8.18628694]
[1745673132137,8.18628694,148.42,148.37,8.18628694]
[1745673132439,8.18628694,148.43,148.38,14.92348694]
[1745673133135,8.18628694,148.43,148.39,14.92298694]
[1745673133337,24.42,148.44,148.41,8.18628694]
[1745673134340,6.7353,148.43,148.41,8.18628694]
[1745673136042,31.1547,148.44,148.42,8.18628694]
[1745673136439,31.1547,148.44,148.41,8.18628694]
[1745673136837,6.7347,148.44,148.41,14.92218694]
[1745673137342,6.7347,148.44,148.41,8.18628694]
[1745673138143,6.735,148.43,148.41,8.18628694]
[1745673139542,6.735,148.43,148.42,8.18628694]
[1745673142746,6.735,148.43,148.41,8.18628694]
[1745673142944,6.735,148.43,148.4,8.18628694]
[1745673143544,6.735,148.43,148.39,31.1566]
[1745673143845,6.735,148.43,148.39,39.34288694]
[1745673146048,6.735,148.43,148.4,6.7363]
[1745673146851,6.735,148.43,148.4,14.92258694]
[1745673147350,6.7355,148.42,148.4,8.18628694]
[1745673147746,8.18628694,148.44,148.4,8.18628694]
[1745673147945,6.7349,148.44,148.4,14.92228694]
[1745673148150,8.18628694,148.45,148.4,14.92228694]
[1745673149052,6.7353,148.43,148.4,14.92228694]
[1745673149452,6.7353,148.43,148.4,8.18628694]
[1745673151053,6.7353,148.43,148.4,14.92248694]
[1745673152355,24.42,148.47,148.41,14.92198694]
[1745673152356,6.7346,148.44,148.41,14.92198694]
[1745673152655,6.7346,148.44,148.42,8.18628694]
[1745673158654,6.7339,148.46,148.43,8.18628694]
[1745673158856,6.7339,148.46,148.44,8.18628694]
[1745673159855,6.7333,148.47,148.44,8.18628694]
[1745673160557,6.7333,148.47,148.44,14.92078694]
[1745673160749,6.7333,148.47,148.45,8.18628694]
[1745673173266,6.7333,148.47,148.46,8.18628694]
[1745673173464,6.7327,148.48,148.46,8.18628694]
[1745673173664,24.4,148.5,148.47,8.18628694]
[1745673174468,6.7325,148.49,148.47,8.18628694]
[1745673175367,6.7327,148.48,148.47,8.18628694]
[1745673175567,6.7327,148.48,148.46,8.18628694]
[1745673176367,6.7332,148.47,148.46,8.18628694]
[1745673178270,6.7329,148.48,148.46,8.18628694]
[1745673178874,30.2855,148.53,148.46,8.18628694]
[1745673179064,36.42338694,148.53,148.49,8.18628694]
[1745673179268,24.38,148.53,148.5,8.18628694]
[1745673179469,6.7313,148.51,148.5,8.18628694]
[1745673179766,8.18628694,148.55,148.5,8.18628694]
[1745673179970,8.18628694,148.55,148.51,8.18628694]
[1745673180870,6.7308,148.53,148.51,8.18628694]
[1745673181072,6.7308,148.53,148.5,8.18628694]
[1745673181271,8.18628694,148.53,148.48,8.18628694]
[1745673182274,8.18628694,148.53,148.49,8.18628694]
[1745673182474,8.18628694,148.54,148.5,8.18628694]
[1745673182668,32.56628694,148.56,148.52,8.18628694]
[1745673182969,6.7298,148.55,148.52,8.18628694]
[1745673183673,6.7298,148.55,148.53,8.18628694]
[1745673185570,6.73,148.54,148.52,8.18628694]
[1745673185775,8.18628694,148.54,148.51,8.18628694]
[1745673186075,6.7315,148.51,148.47,24.38]
[1745673186275,6.7315,148.51,148.48,8.18628694]
[1745673186575,8.18628694,148.52,148.48,8.18628694]
[1745673186768,6.7314,148.51,148.48,8.18628694]
[1745673186973,6.7314,148.51,148.48,14.91898694]
[1745673188375,6.7314,148.51,148.49,8.18628694]
[1745673188674,6.7311,148.52,148.49,8.18628694]
[1745673189076,8.18628694,148.53,148.49,8.18628694]
[1745673189376,6.7315,148.51,148.49,8.18628694]
[1745673190677,6.7311,148.52,148.49,8.18628694]
[1745673191477,6.7311,148.52,148.49,14.91828694]
[1745673191678,6.7311,148.52,148.5,8.18628694]
[1745673191877,6.7306,148.53,148.5,8.18628694]
[1745673193480,6.7309,148.52,148.5,8.18628694]
[1745673194780,6.7313,148.51,148.49,8.18628694]
[1745673194981,8.18628694,148.52,148.48,8.18628694]
[1745673195279,6.7317,148.51,148.48,14.91898694]
[1745673196281,32.56628694,148.55,148.5,8.18628694]
[1745673196481,24.38,148.55,148.52,8.18628694]
[1745673196982,6.7302,148.54,148.52,8.18628694]
[1745673197283,24.38,148.55,148.52,8.18628694]
[1745673197484,12.36208694,148.57,148.52,8.18628694]
[1745673197680,12.36208694,148.57,148.53,8.18628694]
[1745673197986,6.7293,148.56,148.53,8.18628694]
[1745673198585,6.7296,148.55,148.53,8.18628694]
[1745673198780,6.7296,148.55,148.52,14.91688694]
[1745673200486,6.73,148.54,148.52,8.18628694]
[1745673201078,6.7297,148.55,148.52,8.18628694]
[1745673202690,363.0,148.64,148.54,8.18628694]
[1745673202989,8.18628694,148.64,148.59,8.18628694]
[1745673203187,8.18628694,148.63,148.59,8.18628694]
[1745673203487,8.18628694,148.63,148.58,8.18628694]
[1745673203888,6.7271,148.61,148.58,8.18628694]
[1745673204284,8.18628694,148.6,148.56,32.54628694]
[1745673204482,6.7284,148.58,148.55,8.18628694]
[1745673204785,6.7284,148.58,148.54,14.91618694]
[1745673205487,14.91468694,148.58,148.54,14.91618694]
[1745673207090,8.18628694,148.6,148.55,8.18628694]
[1745673207888,6.7285,148.58,148.55,8.18628694]
[1745673208288,6.7285,148.58,148.55,14.91578694]
[1745673208989,6.7285,148.58,148.56,8.18628694]
[1745673211293,8.18628694,148.59,148.54,8.18628694]
[1745673211992,6.7291,148.57,148.54,8.18628694]
[1745673212398,8.18628694,148.58,148.54,8.18628694]
[1745673212589,6.7298,148.55,148.53,24.36]
[1745673213095,6.7292,148.56,148.53,32.54628694]
[1745673213998,6.7292,148.56,148.54,8.18628694]
[1745673216101,6.1395,148.61,148.55,14.91578694]
[1745673216297,8.18628694,148.6,148.56,8.18628694]
[1745673216601,6.728,148.59,148.56,8.18628694]
[1745673218597,6.7284,148.58,148.55,8.18628694]
[1745673219600,6.7284,148.58,148.55,14.91568694]
[1745673237018,6.7284,148.58,148.56,6.7291]
[1745673238218,6.7284,148.58,148.55,14.91558694]
[1745673238822,6.7284,148.58,148.55,6.7293]
[1745673239116,6.7284,148.58,148.55,14.91558694]
[1745673242116,6.7279,148.59,148.56,6.729]
[1745673242629,4.1128,148.61,148.56,8.18628694]
[1745673242630,8.18628694,148.61,148.56,8.18628694]
[1745673242824,32.54628694,148.62,148.58,8.18628694]
[1745673243021,36.64298694,148.65,148.61,8.18628694]
[1745673243220,6.7257,148.64,148.62,8.18628694]
[1745673244026,6.7252,148.65,148.62,8.18628694]
[1745673245631,6.7256,148.64,148.62,8.18628694]
[1745673245835,6.7256,148.64,148.61,14.91298694]
[1745673248129,6.7256,148.64,148.61,8.18628694]
[1745673248731,8.18628694,148.63,148.59,8.18628694]
[1745673248928,8.18628694,148.6,148.56,32.52628694]
[1745673249233,6.728,148.59,148.56,24.34]
[1745673249829,6.728,148.59,148.56,32.52628694]
[1745673250736,6.728,148.59,148.57,8.18628694]
[1745673255542,6.7282,148.58,148.57,8.18628694]
[1745673255737,6.7282,148.58,148.56,32.52628694]
[1745673256140,6.7279,148.59,148.56,32.52628694]
[1745673256943,6.7279,148.59,148.56,39.25518694]
[1745673257140,6.7279,148.59,148.57,8.18628694]
[1745673257337,6.7282,148.58,148.57,8.18628694]
[1745673257538,8.18628694,148.61,148.57,8.18628694]
[1745673258141,6.728,148.59,148.57,8.18628694]
[1745673258941,6.728,148.59,148.56,31.069]
[1745673259134,6.728,148.59,148.57,8.18628694]
[1745673263044,8.18628694,148.6,148.56,32.52628694]
[1745673263340,8.18628694,148.59,148.56,24.34]
[1745673263541,6.7286,148.57,148.56,24.34]
[1745673267748,14.91458694,148.58,148.56,24.34]
[1745673268746,6.7283,148.58,148.56,24.34]
[1745673268944,8.18628694,148.59,148.56,24.34]
[1745673269244,8.18628694,148.57,148.52,8.18628694]
[1745673269446,8.18628694,148.57,148.53,24.32]